bitfinex/quotes_SOLUSD_20241223
["timestamp","ask_amount","ask_price","bid_price","bid_amount"]
[1734975677491,20.0,184.81,184.7,20.20515921]
[1734975677681,20.0,184.81,184.71,20.20515921]
[1734975678219,20.0,184.81,184.69,20.20515921]
[1734975678607,0.12549,184.8,184.67,20.20515921]
[1734975678811,0.12549,184.78,184.62,0.81183671]
[1734975679016,20.0,184.77,184.68,20.20515921]
[1734975679316,3.6077,184.79,184.72,20.20515921]
[1734975679621,3.6077,184.79,184.73,20.20515921]
[1734975680214,1.5919,184.82,184.75,20.20515921]
[1734975680409,1.5919,184.82,184.76,20.20515921]
[1734975680819,1.5919,184.82,184.75,20.20515921]
[1734975681330,1.5919,184.82,184.76,20.20515921]
[1734975682236,1.5919,184.82,184.75,20.20515921]
[1734975682722,1.5919,184.82,184.77,20.0]
[1734975682927,1.6181,184.87,184.79,20.20515921]
[1734975683438,1.6181,184.87,184.78,20.20515921]
[1734975684148,1.6181,184.87,184.79,20.20515921]
[1734975684502,1.6181,184.87,184.78,20.20515921]
[1734975684701,1.6181,184.87,184.79,23.776884]
[1734975685466,1.6181,184.87,184.79,43.98204321]
[1734975685779,1.6181,184.87,184.81,20.20515921]
[1734975685940,1.608,184.92,184.83,20.20515921]
[1734975686339,1.608,184.92,184.8,0.12549]
[1734975686340,1.608,184.92,184.84,20.33064921]
[1734975686579,1.608,184.92,184.85,20.20515921]
[1734975686876,1.608,184.92,184.83,20.0]
[1734975687658,1.608,184.92,184.84,20.20515921]
[1734975687976,1.608,184.92,184.83,40.20515921]
[1734975688190,1.608,184.92,184.8,33.73325921]
[1734975688355,1.608,184.92,184.8,13.5281]
[1734975688858,20.0,184.9,184.8,33.73325921]
[1734975689055,1.608,184.92,184.84,20.20515921]
[1734975689275,1.608,184.92,184.85,20.20515921]
[1734975689692,1.608,184.92,184.84,23.776884]
[1734975690888,1.608,184.92,184.83,33.73095921]
[1734975691077,1.608,184.92,184.82,20.20515921]
[1734975691278,1.608,184.92,184.83,43.98204321]
[1734975691694,1.608,184.92,184.84,20.20515921]
[1734975691878,1.608,184.92,184.83,43.98204321]
[1734975692783,1.608,184.92,184.84,20.20515921]
[1734975693400,1.608,184.92,184.85,20.20515921]
[1734975693577,1.608,184.92,184.85,23.776884]
[1734975693978,1.608,184.92,184.84,33.73035921]
[1734975694186,1.608,184.92,184.84,13.5252]
[1734975694382,1.608,184.92,184.85,23.776884]
[1734975694585,1.608,184.92,184.85,43.98204321]
[1734975694784,3.6077,184.98,184.86,0.12549]
[1734975695098,3.6077,184.98,184.89,20.20515921]
[1734975695099,1.6654,184.97,184.89,20.20515921]
[1734975695621,1.6654,184.97,184.87,23.776884]
[1734975696177,1.6654,184.97,184.9,23.902374]
[1734975696486,3.6077,185.03,184.92,43.98204321]
[1734975696684,3.6077,185.03,184.94,43.98204321]
[1734975696885,3.6077,185.03,184.94,20.20515921]
[1734975697290,3.6077,185.03,184.89,13.5214]
[1734975697291,0.12549,185.02,184.89,13.5214]
[1734975697493,0.12549,185.0,184.87,23.776884]
[1734975697695,0.12549,185.0,184.87,20.20515921]
[1734975697905,20.0,185.0,184.87,20.20515921]
[1734975698701,20.0,185.0,184.88,20.20515921]
[1734975699493,20.0,185.0,184.9,20.20515921]
[1734975699688,20.0,185.0,184.89,23.776884]
[1734975699894,20.0,185.0,184.87,33.72805921]
[1734975700101,20.0,184.96,184.84,43.98204321]
[1734975700602,20.0,185.0,184.87,23.776884]
[1734975700909,20.0,185.0,184.89,23.776884]
[1734975701106,20.0,185.0,184.89,20.20515921]
[1734975701610,20.0,185.0,184.9,20.20515921]
[1734975701807,1.5585,185.01,184.91,23.776884]
[1734975702308,1.5585,185.01,184.94,20.0]
[1734975702695,1.5585,185.01,184.91,23.776884]
[1734975703098,1.5585,185.01,184.93,20.0]
[1734975703799,1.5585,185.01,184.93,40.20515921]
[1734975704113,1.5585,185.01,184.93,20.0]
[1734975705413,1.5585,185.01,184.92,20.20515921]
[1734975706489,1.5585,185.01,184.93,44.10753321]
[1734975706691,1.5585,185.01,184.94,20.20515921]
[1734975707203,1.5585,185.01,184.93,37.295484]
[1734975707204,1.5585,185.01,184.91,20.20515921]
[1734975707387,1.5585,185.01,184.9,33.72575921]
[1734975707712,1.5585,185.01,184.93,20.0]
[1734975708413,1.5585,185.01,184.94,20.20515921]
[1734975708613,1.5585,185.01,184.95,0.12549]
[1734975708785,1.5585,185.01,184.96,20.20515921]
[1734975708990,3.6077,185.07,184.96,20.20515921]
[1734975709712,3.6077,185.07,184.95,20.20515921]
[1734975709914,3.6077,185.07,184.93,20.0]
[1734975709915,0.12549,185.05,184.93,20.0]
[1734975710110,0.12549,185.05,184.88,20.20515921]
[1734975710292,20.0,185.0,184.87,20.20515921]
[1734975710491,20.0,184.98,184.87,20.20515921]
[1734975710686,20.0,184.98,184.88,0.12549]
[1734975710911,3.6077,185.0,184.9,20.33064921]
[1734975711133,20.0,184.99,184.89,20.20515921]
[1734975711305,20.0,184.99,184.9,20.20515921]
[1734975711486,3.6077,185.0,184.91,20.20515921]
[1734975711813,3.6077,185.0,184.9,20.20515921]
[1734975712390,3.6077,185.0,184.88,14.33310712]
[1734975712391,3.6077,185.0,184.91,20.20515921]
[1734975712801,3.6077,185.0,184.88,33.72735921]
[1734975713114,3.6077,185.0,184.89,20.20515921]
[1734975713514,0.12549,184.99,184.87,20.20515921]
[1734975713723,0.12549,184.97,184.84,20.20515921]
[1734975713893,43.902374,184.97,184.84,20.20515921]
[1734975714289,1.5614,184.98,184.89,20.20515921]
[1734975720302,20.0,184.97,184.86,20.81098199]
[1734975720503,20.0,184.97,184.84,33.73015921]
[1734975721925,23.902374,184.96,184.84,33.73015921]
[1734975722223,20.0,184.93,184.82,20.20515921]
[1734975722427,5.1473,184.91,184.8,20.20515921]
[1734975723422,5.1473,184.91,184.81,0.12549]
[1734975723630,5.1473,184.91,184.82,20.20515921]
[1734975725225,20.0,184.88,184.77,20.20515921]
[1734975725523,20.0,184.84,184.74,20.20515921]
[1734975725729,1.6131,184.83,184.74,20.20515921]
[1734975725929,1.6131,184.83,184.73,13.5332]
[1734975726122,1.6131,184.83,184.72,20.20515921]
[1734975726123,0.12549,184.81,184.71,20.20515921]
[1734975726330,23.902374,184.81,184.69,20.20515921]
[1734975726535,23.902374,184.81,184.67,33.74255921]
[1734975726731,20.0,184.78,184.67,13.5374]
[1734975726940,1.6131,184.77,184.66,20.20515921]
[1734975727320,1.6131,184.77,184.7,20.20515921]
[1734975727527,1.6131,184.77,184.68,0.12549]
[1734975727734,1.6131,184.77,184.7,20.20515921]
[1734975727935,1.6131,184.77,184.69,20.20515921]
[1734975728736,1.6131,184.77,184.7,20.20515921]
[1734975729918,1.6131,184.81,184.72,20.20515921]
[1734975730117,1.6131,184.81,184.74,20.20515921]
[1734975730526,1.6131,184.81,184.75,20.20515921]
[1734975730833,1.6131,184.81,184.76,20.20515921]
[1734975731228,1.6131,184.81,184.75,20.20515921]
[1734975731429,1.6131,184.81,184.73,33.73815921]
[1734975731640,1.6131,184.81,184.7,13.5353]
[1734975732046,1.6131,184.81,184.7,33.74045921]
[1734975732213,1.6131,184.81,184.7,13.5353]
[1734975732423,1.6131,184.81,184.7,33.74045921]
[1734975732754,1.6131,184.81,184.71,20.20515921]
[1734975732921,1.6131,184.81,184.72,20.20515921]
[1734975733125,1.6131,184.81,184.73,20.0]
[1734975733936,1.6131,184.81,184.75,20.20515921]
[1734975734127,1.6131,184.81,184.74,20.20515921]
[1734975734847,1.6131,184.81,184.75,20.0]
[1734975735031,1.6131,184.81,184.74,20.20515921]
[1734975735347,1.6131,184.81,184.76,20.20515921]
[1734975735549,1.6131,184.81,184.74,20.20515921]
[1734975736740,1.6131,184.81,184.76,20.20515921]
[1734975737447,1.519,184.85,184.77,20.20515921]
[1734975737818,1.519,184.85,184.79,20.20515921]
[1734975738024,1.519,184.9,184.81,20.20515921]
[1734975738226,1.519,184.9,184.82,20.20515921]
[1734975738445,1.519,184.9,184.81,20.20515921]
[1734975738741,0.12549,184.89,184.77,20.20515921]
[1734975738946,0.12549,184.89,184.76,20.20515921]
[1734975739138,0.12549,184.89,184.75,33.73685921]
[1734975739335,20.0,184.88,184.77,13.5303]
[1734975739646,1.519,184.9,184.82,20.20515921]
[1734975740151,1.519,184.9,184.83,20.20515921]
[1734975741237,1.519,184.9,184.82,20.20515921]
[1734975741441,1.519,184.9,184.8,20.20515921]
[1734975741741,1.519,184.9,184.82,20.0]
[1734975742527,1.5088,184.95,184.87,20.20515921]
[1734975742722,1.5088,184.95,184.83,24.71370475]
[1734975742723,1.5088,184.95,184.89,20.20515921]
[1734975743045,1.5088,184.95,184.9,20.20515921]
[1734975743250,3.6077,184.98,184.9,20.20515921]
[1734975743251,3.6077,184.98,184.9,33.72585921]
[1734975743446,1.5311,184.99,184.92,20.20515921]
[1734975743648,5.2052,185.03,184.93,20.20515921]
[1734975743836,5.2052,185.03,184.89,40.20515921]
[1734975744034,0.12549,185.02,184.89,20.20515921]
[1734975744823,23.902374,185.02,184.89,20.0]
[1734975745052,20.0,184.99,184.89,20.0]
[1734975745364,20.0,184.99,184.89,40.20515921]
[1734975745665,20.0,184.99,184.91,20.20515921]
[1734975745952,5.2052,185.03,184.95,20.20515921]
[1734975746154,5.2052,185.03,184.96,20.20515921]
[1734975746353,1.5975,185.03,184.97,20.20515921]
[1734975746533,1.5975,185.03,184.93,40.20515921]
[1734975746735,0.12549,185.01,184.88,20.20515921]
[1734975747047,3.6077,185.02,184.9,40.20515921]
[1734975747250,20.0,185.0,184.91,33.72455921]
[1734975747440,20.0,185.0,184.92,20.20515921]
[1734975747752,20.0,185.0,184.91,13.5194]
[1734975748053,20.0,185.0,184.9,20.20515921]
[1734975748269,20.0,185.0,184.89,20.20515921]
[1734975748562,20.0,185.0,184.88,33.72725921]
[1734975748750,20.0,185.0,184.89,20.20515921]
[1734975748948,20.0,185.0,184.92,20.20515921]
[1734975749152,3.6077,185.02,184.93,20.20515921]
[1734975749348,3.6077,185.02,184.94,20.20515921]
[1734975749671,3.6077,185.02,184.95,20.20515921]
[1734975749848,3.6077,185.02,184.93,33.72335921]
[1734975750239,3.6077,185.02,184.93,26.17200098]
[1734975750751,3.6077,185.02,184.9,13.5207]
[1734975750958,3.6077,185.02,184.91,12.65380098]
[1734975751255,3.6077,185.02,184.92,12.65380098]
[1734975751460,3.6077,185.02,184.95,12.65380098]
[1734975751631,1.5975,185.03,184.98,12.65380098]
[1734975751833,1.5975,185.03,184.97,0.12549]
[1734975752047,1.5975,185.03,184.97,12.65380098]
[1734975752256,1.5975,185.03,184.96,12.65380098]
[1734975752748,1.5975,185.03,184.93,12.65380098]
[1734975753063,1.5975,185.03,184.95,12.65380098]
[1734975753285,1.5975,185.03,184.94,12.65380098]
[1734975753764,23.902374,185.02,184.89,13.5213]
[1734975754060,20.0,184.99,184.88,12.65380098]
[1734975754451,20.0,184.99,184.89,12.65380098]
[1734975754855,1.6555,184.98,184.89,12.65380098]
[1734975755058,3.6077,184.97,184.88,12.65380098]
[1734975756247,3.6077,184.97,184.88,20.25832947]
[1734975756562,3.6077,184.97,184.8,40.70979]
[1734975756563,3.6077,184.97,184.85,20.0]
[1734975756763,3.6077,184.97,184.86,20.25832947]
[1734975757363,3.6077,184.97,184.88,20.25832947]
[1734975758483,20.0,184.95,184.86,20.25832947]
[1734975758770,23.902374,184.94,184.82,20.25832947]
[1734975759170,20.0,184.95,184.84,20.25832947]
[1734975759471,20.0,184.95,184.86,20.25832947]
[1734975760267,20.0,184.95,184.85,20.25832947]
[1734975760450,20.0,184.95,184.87,20.25832947]
[1734975760792,20.0,184.95,184.89,20.25832947]
[1734975760967,3.6077,184.97,184.89,20.25832947]
[1734975761170,3.6077,184.97,184.91,20.25832947]
[1734975761673,3.6077,184.97,184.9,20.25832947]
[1734975761869,3.6077,184.97,184.88,33.78052947]
[1734975762070,3.6077,184.97,184.86,20.25832947]
[1734975762250,0.12549,184.96,184.85,20.25832947]
[1734975762757,20.0,184.95,184.85,20.25832947]
[1734975763069,20.0,184.95,184.87,20.25832947]
[1734975763288,20.0,184.95,184.86,20.25832947]
[1734975763653,20.0,184.95,184.85,20.25832947]
[1734975763855,20.0,184.95,184.82,20.25832947]
[1734975763856,20.0,184.91,184.82,20.25832947]
[1734975764248,20.0,184.91,184.81,33.78562947]
[1734975764549,20.0,184.91,184.82,20.25832947]
[1734975764753,20.0,184.91,184.83,20.25832947]
[1734975765270,1.6607,184.93,184.85,20.25832947]
[1734975765653,1.6607,184.93,184.84,20.25832947]
[1734975766270,1.6607,184.93,184.83,20.25832947]
[1734975766470,1.6607,184.93,184.84,20.25832947]
[1734975767959,1.6607,184.93,184.86,20.25832947]
[1734975768167,1.6607,184.93,184.85,20.25832947]
[1734975769376,1.6607,184.93,184.83,20.25832947]
[1734975771467,0.12549,184.92,184.83,20.25832947]
[1734975771778,23.902374,184.92,184.83,20.25832947]
[1734975771981,1.6607,184.93,184.83,20.25832947]
[1734975772170,1.6607,184.93,184.84,20.25832947]
[1734975772371,1.6607,184.93,184.82,20.25832947]
[1734975772674,1.6607,184.93,184.84,20.25832947]
[1734975773784,1.6607,184.93,184.82,20.25832947]
[1734975773785,23.902374,184.92,184.82,20.25832947]
[1734975773964,23.902374,184.92,184.8,33.78642947]
[1734975774166,20.0,184.89,184.8,33.78642947]
[1734975774873,1.6607,184.93,184.8,33.78642947]
[1734975775078,23.902374,184.92,184.8,33.78642947]
[1734975775296,20.0,184.89,184.8,33.78642947]
[1734975775508,3.6077,184.88,184.77,13.5301]
[1734975775664,20.0,184.85,184.75,20.25832947]
[1734975775987,20.0,184.85,184.76,20.25832947]
[1734975776186,20.0,184.85,184.75,20.25832947]
[1734975776372,23.776884,184.84,184.74,13.5324]
[1734975776570,20.0,184.85,184.75,20.25832947]
[1734975777484,0.12549,184.84,184.74,20.25832947]
[1734975777684,23.902374,184.84,184.74,20.25832947]
[1734975778387,23.902374,184.84,184.75,12.67940687]
[1734975779371,23.902374,184.84,184.74,12.67940687]
[1734975780184,20.0,184.81,184.71,12.67940687]
[1734975780679,1.6376,184.8,184.7,12.67940687]
[1734975781195,27.510074,184.79,184.69,26.21530687]
[1734975781379,20.0,184.76,184.68,12.67940687]
[1734975782565,20.0,184.76,184.69,12.67940687]
[1734975782985,20.0,184.76,184.68,12.67940687]
[1734975783389,20.0,184.76,184.69,12.67940687]
[1734975784397,20.0,184.76,184.68,12.67940687]
[1734975785493,20.0,184.76,184.66,12.67940687]
[1734975785718,20.0,184.72,184.64,12.67940687]
[1734975785872,1.6588,184.71,184.64,12.67940687]
[1734975786196,1.6588,184.71,184.63,26.21970687]
[1734975786876,1.6588,184.71,184.64,12.67940687]
[1734975787290,1.6588,184.71,184.63,12.67940687]
[1734975787506,20.0,184.67,184.6,12.67940687]
[1734975787721,20.0,184.67,184.58,12.67940687]
[1734975788314,23.776884,184.66,184.57,12.67940687]
[1734975788471,20.0,184.63,184.56,0.6834123]
[1734975788806,20.0,184.63,184.58,12.67940687]
[1734975789173,1.6415,184.65,184.58,12.67940687]
[1734975789700,1.6415,184.65,184.6,12.67940687]
[1734975789909,1.6415,184.65,184.61,12.67940687]
[1734975790279,1.6415,184.65,184.6,12.67940687]
[1734975790774,1.514,184.69,184.64,12.67940687]
[1734975790998,1.514,184.69,184.59,26.22220687]
[1734975790999,1.514,184.75,184.62,43.902374]
[1734975791205,1.514,184.75,184.69,12.67940687]
[1734975791390,3.6077,184.76,184.64,0.12549]
[1734975791391,1.6196,184.79,184.71,12.67940687]
[1734975791581,1.6196,184.79,184.74,12.67940687]
[1734975792607,1.6196,184.79,184.69,0.93721164]
[1734975792608,1.5331,184.84,184.77,12.67940687]
[1734975792775,1.5331,184.88,184.82,12.67940687]
[1734975792981,1.5331,184.88,184.72,13.5338]
[1734975792982,1.5331,184.88,184.81,12.67940687]
[1734975793205,0.12549,184.87,184.72,13.5338]
[1734975793404,0.12549,184.87,184.73,12.67940687]
[1734975794283,23.902374,184.87,184.73,20.29074749]
[1734975794700,20.0,184.79,184.7,20.29074749]
[1734975794896,23.902374,184.78,184.67,20.29074749]
[1734975795213,23.776884,184.69,184.56,0.6834123]
[1734975795381,1.5331,184.71,184.56,0.6834123]
[1734975795382,20.0,184.62,184.56,0.6834123]
[1734975796030,20.12549,184.7,184.56,0.6834123]
[1734975796318,20.0,184.66,184.56,0.6834123]
[1734975798003,20.0,184.61,184.56,0.6834123]
[1734975798785,5.1408,184.64,184.56,0.6834123]
[1734975799596,1.5331,184.64,184.56,0.6834123]
[1734975800519,1.5331,184.64,184.56,20.6834123]
[1734975800811,3.6077,184.68,184.61,20.0]
[1734975800983,1.5999,184.69,184.61,20.0]
[1734975801189,1.5999,184.69,184.61,40.29074749]
[1734975801386,1.5999,184.69,184.61,20.0]
[1734975801991,1.5999,184.69,184.6,20.29074749]
[1734975801992,1.5999,184.69,184.6,20.0]
[1734975802199,1.5999,184.69,184.62,20.29074749]
[1734975802397,1.5999,184.69,184.61,20.29074749]
[1734975802598,1.5999,184.69,184.62,20.0]
[1734975803612,1.5982,184.73,184.66,20.41623749]
[1734975803909,3.6077,184.78,184.67,20.29074749]
[1734975803910,1.5982,184.77,184.67,20.29074749]
[1734975804090,1.5982,184.77,184.66,40.41623749]
[1734975804286,1.5982,184.77,184.66,20.12549]
[1734975804509,1.5982,184.77,184.63,23.776884]
[1734975804701,1.5982,184.77,184.62,33.83174749]
[1734975805195,1.5982,184.77,184.65,20.29074749]
[1734975805394,1.5982,184.77,184.64,20.41623749]
[1734975805701,1.5982,184.77,184.65,57.60673149]
[1734975806320,20.0,184.75,184.62,20.29074749]
[1734975806614,20.0,184.75,184.64,20.29074749]
[1734975806994,20.0,184.75,184.65,20.29074749]
[1734975807618,1.5982,184.77,184.68,20.29074749]
[1734975808340,1.5982,184.77,184.67,34.76544914]
[1734975808920,1.5982,184.77,184.68,23.776884]
[1734975809097,1.5982,184.77,184.68,44.06763149]
[1734975809517,1.5982,184.77,184.68,23.776884]
[1734975809727,1.5982,184.77,184.66,6.6621]
[1734975809927,1.5982,184.77,184.64,13.5398]
[1734975809928,0.12549,184.76,184.64,13.5398]
[1734975810126,23.902374,184.76,184.61,6.199]
[1734975810632,20.0,184.73,184.61,6.199]
[1734975811920,20.0,184.73,184.61,26.48974749]
[1734975812120,20.0,184.68,184.56,47.5981123]
[1734975812323,20.0,184.68,184.56,14.2283123]
[1734975813224,20.0,184.64,184.56,0.6834123]
[1734975813531,1.5053,184.63,184.56,0.6834123]
[1734975817406,1.5639,184.7,184.57,23.902374]
[1734975817612,1.5639,184.7,184.58,13.5442]
[1734975817812,1.5639,184.7,184.58,33.83494749]
[1734975818015,1.5639,184.7,184.58,13.5442]
[1734975819247,20.0,184.68,184.58,13.5442]
[1734975819428,20.0,184.68,184.58,33.83494749]
[1734975819620,20.0,184.68,184.58,13.5442]
[1734975820542,20.0,184.68,184.59,23.902374]
[1734975820742,1.5639,184.7,184.61,44.19312149]
[1734975821054,1.5602,184.74,184.64,20.29074749]
[1734975821222,1.5602,184.74,184.64,0.12549]
[1734975821414,1.5602,184.74,184.64,20.41623749]
[1734975821614,5.184,184.81,184.67,0.12549]
[1734975821919,5.184,184.81,184.67,23.902374]
[1734975822131,5.184,184.81,184.67,24.71418821]
[1734975822337,5.184,184.81,184.67,23.902374]
[1734975822652,5.184,184.81,184.68,13.5369]
[1734975823043,5.184,184.81,184.69,0.12549]
[1734975823238,5.184,184.81,184.69,23.902374]
[1734975824129,5.184,184.81,184.68,13.5369]
[1734975824742,20.0,184.78,184.68,13.5369]
[1734975828437,5.184,184.81,184.69,23.902374]
[1734975829753,5.184,184.81,184.68,13.5369]
[1734975829754,20.0,184.78,184.68,13.5369]
[1734975830120,1.5972,184.77,184.68,13.5369]
[1734975830321,1.5972,184.77,184.66,20.0]
[1734975830526,1.5972,184.77,184.64,13.5392]
[1734975832030,23.776884,184.76,184.62,23.776884]
[1734975832232,23.776884,184.76,184.65,20.0]
[1734975834737,1.5972,184.77,184.65,20.0]
[1734975834933,1.5972,184.77,184.66,20.0]
[1734975835449,23.776884,184.76,184.63,13.66549]
[1734975838758,20.0,184.73,184.63,13.66549]
[1734975841439,20.0,184.69,184.56,22.63315979]
[1734975841753,20.0,184.69,184.56,20.97415979]
[1734975842056,20.0,184.69,184.57,20.29074749]
[1734975842429,20.0,184.69,184.57,33.83554749]
[1734975843232,20.0,184.69,184.57,13.5448]
[1734975843463,20.0,184.69,184.56,0.6834123]
[1734975843647,1.5057,184.64,184.56,0.6834123]
[1734975843843,20.0,184.61,184.56,0.6834123]
[1734975849352,43.776884,184.57,184.56,0.6834123]
[1734975849696,45.301284,184.57,184.56,0.6834123]
[1734975849844,23.776884,184.56,184.44,33.84474749]
[1734975850049,20.0,184.53,184.44,33.84474749]
[1734975850783,1.5244,184.57,184.45,21.10369295]
[1734975850953,1.5244,184.57,184.45,0.81294546]
[1734975851389,3.6077,184.56,184.45,0.81294546]
[1734975851550,20.0,184.54,184.45,0.81294546]
[1734975851876,5.1337,184.61,184.52,20.29074749]
[1734975852081,5.1337,184.61,184.51,20.41623749]
[1734975852284,5.1337,184.61,184.5,20.29074749]
[1734975852449,5.1337,184.61,184.49,20.29074749]
[1734975852966,0.12549,184.6,184.46,13.553]
[1734975853168,43.776884,184.57,184.46,13.553]
[1734975853466,20.0,184.57,184.47,0.81289833]
[1734975853639,5.1337,184.61,184.5,20.29074749]
[1734975853835,20.0,184.58,184.5,20.29074749]
[1734975854367,20.0,184.58,184.5,12.71197972]
[1734975855973,20.0,184.58,184.47,23.902374]
[1734975856170,20.0,184.58,184.49,0.12549]
[1734975856343,20.0,184.58,184.46,13.52468295]
[1734975857371,20.0,184.54,184.44,13.52474847]
[1734975857674,20.0,184.54,184.44,0.81294024]
[1734975857857,1.664,184.56,184.45,0.12549]
[1734975858266,23.902374,184.55,184.43,12.71197972]
[1734975858651,23.902374,184.55,184.42,0.81300898]
[1734975859042,1.664,184.56,184.43,26.26717972]
[1734975859954,1.664,184.56,184.43,27.08012456]
[1734975860775,1.664,184.56,184.43,14.36814484]
[1734975861077,1.664,184.56,184.45,12.71197972]
[1734975861267,1.664,184.56,184.46,0.81280893]
[1734975862082,1.664,184.56,184.47,12.71197972]
[1734975862382,5.2233,184.61,184.49,12.71197972]
[1734975862562,5.2233,184.61,184.5,13.5501]
[1734975863775,23.776884,184.6,184.45,26.26577972]
[1734975864687,20.0,184.58,184.46,0.93833084]
[1734975864852,19.95251621,184.58,184.47,26.26427972]
[1734975865462,19.95251621,184.58,184.47,13.5523]
[1734975866055,19.95251621,184.58,184.47,26.26427972]
[1734975867653,20.0,184.54,184.42,12.71197972]
[1734975868267,20.0,184.54,184.43,0.81295942]
[1734975868956,1.6568,184.57,184.46,12.71197972]
[1734975869156,1.6568,184.57,184.46,13.52471974]
[1734975869583,1.6568,184.57,184.46,0.81274002]
[1734975869759,1.6568,184.57,184.45,13.52491611]
[1734975870761,1.6568,184.57,184.46,13.553]
[1734975871571,3.6077,184.56,184.46,13.553]
[1734975872163,3.6077,184.56,184.43,14.36815529]
[1734975873060,3.6077,184.56,184.44,12.71197972]
[1734975873359,23.776884,184.55,184.42,12.71197972]
[1734975873577,23.776884,184.55,184.42,26.26767972]
[1734975874480,20.0,184.52,184.41,12.71197972]
[1734975874968,1.5098,184.54,184.43,32.71197972]
[1734975875175,1.6223,184.58,184.48,12.71197972]
[1734975875684,1.6223,184.58,184.44,0.81274277]
[1734975875858,1.6223,184.58,184.43,32.71197972]
[1734975876371,1.6223,184.58,184.43,33.52490046]
[1734975876573,1.6223,184.58,184.44,13.5545]
[1734975876773,23.776884,184.57,184.44,13.5545]
[1734975877597,21.6223,184.58,184.49,12.71197972]
[1734975877757,3.6077,184.61,184.51,12.71197972]
[1734975877967,1.6339,184.62,184.54,12.71197972]
[1734975878188,1.6339,184.62,184.54,13.52443882]
[1734975878489,5.2352,184.66,184.56,12.71197972]
[1734975878869,5.2352,184.66,184.55,12.83746972]
[1734975879062,5.2352,184.66,184.56,12.71197972]
[1734975879290,5.2352,184.71,184.59,12.71197972]
[1734975879472,5.2352,184.71,184.6,0.81214359]
[1734975879794,5.2352,184.71,184.6,12.71197972]
[1734975879990,8.10569962,184.81,184.64,12.71197972]
[1734975879991,3.6077,184.76,184.64,12.71197972]
[1734975880700,3.6077,184.76,184.62,12.71197972]
[1734975880948,3.6077,184.76,184.61,12.71197972]
[1734975881403,20.0,184.74,184.61,12.71197972]
[1734975881602,20.0,184.74,184.6,46.38016972]
[1734975881814,3.6077,184.76,184.6,46.38016972]
[1734975882169,3.6077,184.76,184.61,20.31556091]
[1734975882376,3.6077,184.76,184.62,20.31556091]
[1734975883193,20.0,184.74,184.62,20.31556091]
[1734975883504,20.0,184.74,184.61,20.31556091]
[1734975883805,20.0,184.74,184.6,53.98375091]
[1734975884401,23.902374,184.73,184.6,13.5427]
[1734975885023,20.0,184.74,184.62,20.31556091]
[1734975885197,3.6077,184.76,184.65,20.31556091]
[1734975885412,3.6077,184.81,184.69,33.85166091]
[1734975885591,3.6077,184.81,184.7,20.31556091]
[1734975886625,3.6077,184.81,184.69,14.34785561]
[1734975886626,3.6077,184.81,184.72,20.31556091]
[1734975886926,1.5152,184.82,184.73,0.81160155]
[1734975887495,1.5152,184.82,184.71,13.5347]
[1734975888028,1.5152,184.82,184.71,33.85026091]
[1734975888188,1.5152,184.82,184.73,20.31556091]
[1734975888390,1.5152,184.82,184.72,21.12720129]
[1734975888589,1.5152,184.82,184.7,20.31556091]
[1734975888785,1.5152,184.82,184.69,20.31556091]
[1734975889193,1.5152,184.82,184.7,20.44105091]
[1734975889395,1.5152,184.82,184.72,20.31556091]
[1734975889631,1.5152,184.82,184.71,20.31556091]
[1734975890195,1.5152,184.82,184.72,20.31556091]
[1734975890630,1.5152,184.82,184.72,33.84906091]
[1734975891013,1.5152,184.82,184.72,13.5335]
[1734975891821,1.5152,184.82,184.74,20.31556091]
[1734975892034,1.5152,184.82,184.75,33.84726091]
[1734975892238,3.6077,184.86,184.79,20.31556091]
[1734975892412,1.5515,184.87,184.79,20.31556091]
[1734975893111,1.5515,184.87,184.77,20.31556091]